fUSD/lending_fUSD_20251027
["ID","MTS","AMOUNT","RATE_DAILY","PERIOD"]
[392500771,1761574036856,-1989.81716776,0.00027505,2]
[392500772,1761574036879,-232460.6382689,0.00027512,2]
[392500773,1761574036902,-150.0,0.00027529,7]
[392500774,1761574036924,-150.0,0.00027529,7]
[392500775,1761574036945,-150.0,0.00027529,7]
[392500776,1761574036970,-1097.0,0.000276,7]
[392500777,1761574036992,-551.87,0.000276,7]
[392500778,1761574037014,-430.64610974,0.00027622,5]
[392500779,1761574037038,-2351.0,0.00027683,2]
[392500780,1761574037058,-150.0,0.00027701,7]
[392500781,1761574037080,-150.0,0.00027701,7]
[392500782,1761574037102,-298.26089446,0.00027714,2]
[392500783,1761574037122,-599.60298507,0.00027715,2]
[392500784,1761574037144,-15396.0333094,0.00027801,3]
[392500785,1761574037166,-17149.5472123,0.00027806,3]
[392500786,1761574037186,-500.0,0.00027811,5]
[392500787,1761574037209,-364.16983711,0.00027816,5]
[392500788,1761574037231,-2000.0,0.00027816,5]
[392500789,1761574037251,-150.0,0.00027851,7]
[392500790,1761574037271,-150.0,0.00027959,7]
[392500791,1761574037293,-150.0,0.00027959,7]
[392500792,1761574037313,-150.0,0.00027959,7]
[392500793,1761574037335,-7327.88561996,0.00028,2]
[392500794,1761574037370,500.0,0.0002688,2]
[392500795,1761574037401,250.0,0.0002688,2]
[392500796,1761574037435,574.12855637,0.0002688,2]
[392500797,1761574037489,151.0,0.0002688,2]
[392500798,1761574037525,-1650.22314566,0.00028011,3]
[392500799,1761574037563,500.0,0.0002688,2]
[392500800,1761574037605,250.0,0.0002688,2]
[392500801,1761574037633,595.37131296,0.00027428,2]
[392500802,1761574037711,151.0,0.0002688,2]
[392500803,1761574037740,500.0,0.0002688,2]
[392500804,1761574037766,151.0,0.00027099,2]
[392500805,1761574037800,250.0,0.0002688,2]
[392500806,1761574037826,617.40005154,0.00027976,2]
[392500807,1761574037850,177.66783909,0.00027099,2]
[392500808,1761574037918,151.0,0.0002688,2]
[392500809,1761574037949,500.0,0.0002688,2]
[392500810,1761574038110,151.0,0.0002688,2]
[392500811,1761574038143,500.0,0.0002688,2]
[392500812,1761574038303,151.0,0.0002688,2]
[392500813,1761574038366,500.0,0.0002688,2]
[392500814,1761574038586,151.0,0.00028,2]
[392500815,1761574038681,151.0,0.0002688,2]
[392500816,1761574038753,500.0,0.0002688,2]
[392500817,1761574039046,250.0,0.0002688,2]
[392500819,1761574039406,151.0,0.0002688,2]
[392500820,1761574039467,500.0,0.0002688,2]
[392500821,1761574039726,250.0,0.0002688,2]
[392500822,1761574040106,500.0,0.0002688,2]
[392500823,1761574040486,151.0,0.0002688,2]
[392500824,1761574040529,250.0,0.0002688,2]
[392500825,1761574040749,500.0,0.0002688,2]
[392500826,1761574040940,151.0,0.0002688,2]
[392500827,1761574041041,250.0,0.0002688,2]
[392500828,1761574041068,264.43366299,0.00028,2]
[392500829,1761574041396,500.0,0.0002688,2]
[392500830,1761574041630,151.0,0.0002688,2]
[392500831,1761574041664,151.0,0.00027509,7]
[392500832,1761574042025,500.0,0.0002688,2]
[392500833,1761574042214,204.33567817,0.00028,2]
[392500834,1761574042688,500.0,0.0002688,2]
[392500835,1761574043278,500.0,0.0002688,2]
[392500836,1761574043912,500.0,0.0002688,2]
[392500837,1761574044618,500.0,0.0002688,2]
[392500838,1761574044646,500.0,0.0002688,2]
[392500839,1761574045207,500.0,0.0002688,2]
[392500840,1761574045242,500.0,0.0002688,2]
[392500841,1761574045903,500.0,0.0002688,2]
[392500842,1761574046734,500.0,0.0002688,2]
[392500843,1761574047350,500.0,0.0002688,2]
[392500844,1761574047990,500.0,0.0002688,2]
[392500845,1761574048631,500.0,0.0002688,2]
[392500846,1761574048670,151.0,0.0002688,2]
[392500847,1761574048707,159.65705964,0.0002688,2]
[392500848,1761574049417,500.0,0.0002688,2]
[392500849,1761574049486,151.0,0.0002688,2]
[392500850,1761574050052,500.0,0.0002688,2]
[392500851,1761574050118,151.0,0.0002688,2]
[392500852,1761574050883,151.0,0.0002688,2]
[392500853,1761574051224,500.0,0.0002688,2]
[392500854,1761574051521,151.0,0.0002688,2]
[392500855,1761574051942,214.26309035,0.0002688,2]
[392500856,1761574052179,151.0,0.0002688,2]
[392500857,1761574052835,151.0,0.0002688,2]
[392500858,1761574053525,151.0,0.0002688,2]
[392500859,1761574054178,151.0,0.0002688,2]
[392500860,1761574054848,151.0,0.0002688,2]
[392500861,1761574055538,151.0,0.0002688,2]
[392500862,1761574061205,180.0,0.00027,2]
[392500864,1761574063275,3827.60814377,0.0002753,2]
[392500865,1761574083241,195.0,0.00029585,120]
[392500866,1761574083407,195.0,0.00027213,120]
[392500867,1761574083546,195.0,0.00027606,120]
[392500869,1761574085612,306.52062841,0.00029585,120]
[392500873,1761574140178,-250.0,0.00027208,2]
[392500874,1761574140200,-293.95166992,0.00027409,2]
[392500875,1761574140230,-500.0,0.00027519,2]
[392500876,1761574140256,-500.0,0.00027519,2]
[392500877,1761574140281,-500.0,0.00027519,2]
[392500878,1761574140306,-500.0,0.00027519,2]
[392500879,1761574140330,-500.0,0.00027519,2]
[392500880,1761574140355,-258.31343961,0.00027519,2]
[392500881,1761574140378,-500.0,0.00027519,2]
[392500882,1761574140403,-500.0,0.00027519,2]
[392500883,1761574140427,-500.0,0.00027519,2]
[392500884,1761574140448,-32002.2800649,0.0002752,3]
[392500885,1761574140474,-300.0,0.00027529,2]
[392500886,1761574140496,-387.01891496,0.00027529,2]
[392500887,1761574140517,-141508.43591061,0.0002753,2]
[392500889,1761574146110,-2718.76393576,0.0002753,2]
[392500890,1761574147860,195.0,0.00030283,120]
[392500891,1761574147964,195.0,0.00027551,120]
[392500892,1761574148096,195.0,0.00027823,120]
[392500893,1761574150861,1058.89350208,0.00030272,120]
[392500895,1761574161092,-500.0,0.00024773,2]
[392500896,1761574161116,-181.07,0.0002752,10]
[392500897,1761574161139,-2176.30343224,0.0002753,2]
[392500900,1761574205824,195.0,0.00030282,120]
[392500901,1761574205895,195.0,0.0002753,120]
[392500902,1761574205958,195.0,0.00027726,120]
[392500903,1761574221535,500.0,0.00024882,2]
[392500904,1761574222623,-300.0,0.00027529,2]
[392500905,1761574222644,-1200.0,0.00027529,2]
[392500906,1761574222665,-281.0,0.00027529,2]
[392500907,1761574222687,-49219.0,0.0002753,2]
[392500934,1761574231687,-119768.85508384,0.0002753,2]
[392500935,1761574231964,-15256.68398162,0.0002753,2]
[392500936,1761574231976,-30493.12820307,0.0002753,2]
[392500937,1761574231988,-5047.48094229,0.0002753,2]
[392500938,1761574231998,-3776.1807635,0.0002753,2]
[392500939,1761574232009,-360.27589094,0.000276,5]
[392500940,1761574232019,-5819.51947,0.00028,2]
[392500942,1761574232029,-8727.89456316,0.00028,3]
[392500944,1761574232041,-11637.1927509,0.00028011,3]
[392500946,1761574232051,-1050.25,0.00028012,2]
[392500948,1761574232061,-4355.50864039,0.00028025,2]
[392500950,1761574232073,-7185.83135961,0.00028025,2]
[392500952,1761574232082,-43325.12,0.00028044,2]
[392500954,1761574232092,-500.0,0.00028051,2]
[392500956,1761574232102,-500.0,0.00028073,2]
[392500958,1761574232111,-150.0,0.00028102,7]
[392500960,1761574232120,-150.0,0.00028102,7]
[392500962,1761574232130,-2909.29818772,0.00028141,3]
[392500964,1761574232139,-402.3,0.00028151,2]
[392500965,1761574232149,-150.0,0.00028228,7]
[392500966,1761574232159,-150.0,0.00028303,7]
[392500968,1761574232169,-150.0,0.00028303,7]
[392500970,1761574232178,-995.14505371,0.00028359,5]
[392500972,1761574232189,-1500.0,0.00028364,5]
[392500974,1761574232199,-150.0,0.00028389,7]
[392500978,1761574232316,-150.0,0.00028389,7]
[392500979,1761574232335,-150.0,0.00028389,7]
[392500980,1761574232345,-10353.0280066,0.000284,3]
[392500981,1761574232357,-6708.043981,0.000284,3]
[392500982,1761574232368,-3801.506002,0.000284,3]
[392500983,1761574232380,-389.851004,0.000284,3]
[392500984,1761574232391,-2021.9565082,0.000284,3]
[392500985,1761574232401,-6848.1034916,0.000284,3]
[392500990,1761574237435,-473.14593773,0.00027529,2]
[392500991,1761574237445,-4789.0892593,0.000284,3]
[392500992,1761574237455,-151.0,0.0002841,31]
[392500993,1761574237464,-151.0,0.0002841,31]
[392500995,1761574237474,-151.0,0.0002841,31]
[392500996,1761574237483,-151.0,0.0002841,31]
[392500997,1761574237492,-151.0,0.0002841,31]
[392500998,1761574237502,-151.0,0.0002841,31]
[392500999,1761574237512,-151.0,0.0002841,31]
[392501000,1761574237521,-151.0,0.0002841,31]
[392501001,1761574237531,-153.748532,0.0002841,31]
[392501002,1761574237542,-151.0,0.0002841,31]
[392501003,1761574237551,-152.655782,0.0002841,31]
[392501004,1761574237560,-151.0,0.0002841,31]
[392501005,1761574237570,-151.0,0.0002841,14]
[392501006,1761574237579,-152.65866,0.0002841,31]
[392501007,1761574237589,-194.627042,0.0002841,31]
[392501008,1761574237598,-194.627042,0.0002841,31]
[392501009,1761574237608,-155.117228,0.0002841,31]
[392501010,1761574237618,-194.627042,0.0002841,31]
[392501011,1761574237628,-194.627042,0.0002841,31]
[392501012,1761574237638,-928.838443,0.0002841,31]
[392501013,1761574237648,-151.0,0.0002841,31]
[392501014,1761574237657,-151.0,0.0002841,31]
[392501015,1761574237666,-928.838443,0.0002841,31]
[392501016,1761574237676,-151.0,0.0002841,31]
[392501017,1761574237685,-151.0,0.0002841,31]
[392501018,1761574237694,-151.0,0.0002841,31]
[392501019,1761574237704,-151.0,0.0002841,31]
[392501021,1761574237713,-151.0,0.0002841,31]
[392501022,1761574237722,-151.0,0.0002841,31]
[392501023,1761574237731,-640.24385345,0.00028524,2]
[392501024,1761574237740,-2909.29818772,0.00028558,3]
[392501025,1761574237749,-150.0,0.00028604,7]
[392501026,1761574237758,-150.0,0.00028604,7]
[392501027,1761574237768,-150.0,0.00028604,7]
[392501028,1761574237778,-8119.83013192,0.00028615,3]
[392501039,1761574237949,-608.06443124,0.00028615,3]
[392501041,1761574237958,-661.33158183,0.00028621,2]
[392501045,1761574237988,-338.66841817,0.00028621,2]
[392501047,1761574237998,-150.0,0.00028819,7]
[392501049,1761574238007,-91.44461764,0.00028819,7]
[392501056,1761574238067,-58.55538236,0.00028819,7]
[392501058,1761574238076,-150.0,0.00028819,7]
[392501060,1761574238086,-5818.59637544,0.00028856,3]
[392501062,1761574238096,-151.45297456,0.00028866,2]
[392501064,1761574238105,-150.0,0.00028905,7]
[392501066,1761574238115,-150.0,0.00028905,7]
[392501068,1761574238124,-150.0,0.0002898,7]
[392501070,1761574238134,-663.93287602,0.00029072,2]
[392501072,1761574238143,-2909.29818772,0.00029075,3]
[392501074,1761574238153,-150.0,0.00029106,7]
[392501076,1761574238161,-150.0,0.00029106,7]
[392501078,1761574238171,-1500.0,0.00029168,2]
[392501080,1761574238180,-402.3,0.00029233,2]
[392501082,1761574238190,-150.0,0.00029249,7]
[392501084,1761574238199,-150.0,0.00029249,7]
[392501086,1761574238208,-150.0,0.00029249,7]
[392501088,1761574238218,-150.0,0.00029357,7]
[392501090,1761574238232,-11637.1927509,0.00029437,3]
[392501092,1761574238242,-150.0,0.00029507,7]
[392501094,1761574238251,-150.0,0.00029507,7]
[392501096,1761574238260,-250.0,0.00029585,2]
[392501098,1761574238270,-164.11,0.00029589,2]
[392501100,1761574238280,-688.49839244,0.0002962,2]
[392501102,1761574238289,-1000.0,0.00029677,2]
[392501104,1761574238299,-150.0,0.00029679,7]
[392501106,1761574238308,-150.0,0.00029679,7]
[392501108,1761574238318,-150.0,0.00029679,7]
[392501110,1761574238327,-529.93699659,0.00029716,2]
[392501111,1761574238337,-150.0,0.00029733,7]
[392501112,1761574238346,-420.0,0.00029746,2]
[392501113,1761574238356,-150.0,0.00029873,5]
[392501114,1761574238365,-327.50826095,0.00029873,5]
[392501115,1761574238375,-500.0,0.00029873,5]
[392501116,1761574238384,-501.66177155,0.00029873,5]
[392501117,1761574238393,-502.10628795,0.00029873,5]
[392501118,1761574238402,-454.84471063,0.00029873,5]
[392501119,1761574238412,-500.0,0.00029873,5]
[392501120,1761574238421,-200.0,0.00029873,5]
[392501121,1761574238431,-1680.0,0.00029876,2]
[392501122,1761574238441,-9926.38989672,0.00029889,3]
[392501123,1761574238450,-49884.37062825,0.000299,2]
[392501129,1761574239635,-1250.91075955,0.000299,2]
[392501130,1761574239648,-11154.04019007,0.000299,2]
[392501131,1761574239657,-2481.59747418,0.0002996,3]
[392501132,1761574239666,-150.0,0.00029973,5]
[392501133,1761574239676,-150.0,0.00029973,5]
[392501134,1761574239685,-151.58346849,0.00029973,5]
[392501135,1761574239695,-4963.19494836,0.0002998,3]
[392501136,1761574239705,-7444.79242254,0.0002999,3]
[392501137,1761574239714,-43700.03663697,0.0003,5]
[392501138,1761574239724,-523.85810528,0.0003,2]
[392501139,1761574239733,-2666.50521697,0.0003,2]
[392501140,1761574239743,-2122.24758528,0.0003,2]
[392501141,1761574239752,-5819.51948,0.0003,2]
[392501142,1761574239763,-2481.59747418,0.000301,3]
[392501143,1761574239772,-150.0,0.0003011,7]
[392501144,1761574239782,-164.87031678,0.0003011,7]
[392501145,1761574239793,-150.0,0.0003011,7]
[392501146,1761574239802,-153.75214629,0.0003011,7]
[392501147,1761574239812,-155.78310216,0.0003011,7]
[392501148,1761574239821,-150.0,0.0003011,7]
[392501149,1761574239831,-152.23972026,0.0003011,7]
[392501150,1761574239840,-150.00000001,0.0003011,7]
[392501151,1761574239851,-166.14039485,0.0003011,7]
[392501152,1761574239860,-150.0,0.0003011,7]
[392501153,1761574239870,-150.0,0.0003011,7]
[392501154,1761574239880,-234.92925555,0.0003011,7]
[392501155,1761574239889,-2481.59747418,0.00030117,3]
[392501156,1761574239899,-2481.59747418,0.0003012,3]
[392501157,1761574239908,-2481.59747418,0.00030127,3]
[392501158,1761574239918,-151.0,0.00030127,7]
[392501159,1761574239927,-11093.50805796,0.00030131,3]
[392501160,1761574239946,-2699.32170041,0.00030131,3]
[392501161,1761574239972,-579.3909977,0.00030131,3]
[392501162,1761574240004,-3104.99983068,0.00030131,3]
[392501163,1761574240016,-3060.00000007,0.00030131,3]
[392501164,1761574240038,-252.636388,0.00030131,3]
[392501175,1761574242659,-13952.50766368,0.00030131,3]
[392501176,1761574242669,-9926.38989672,0.00030131,3]
[392501177,1761574242679,-195.04,0.00030137,2]
[392501178,1761574242688,-500.0,0.00030137,2]
[392501179,1761574242697,-500.0,0.00030137,2]
[392501180,1761574242707,-500.0,0.00030137,2]
[392501181,1761574242716,-500.0,0.00030137,2]
[392501182,1761574242725,-500.0,0.00030137,2]
[392501183,1761574242734,-500.0,0.00030137,2]
[392501184,1761574242744,-500.0,0.00030137,2]
[392501185,1761574242753,-500.0,0.00030137,2]
[392501186,1761574242762,-500.0,0.00030137,2]
[392501187,1761574242771,-500.0,0.00030137,2]
[392501188,1761574242781,-500.0,0.00030137,2]
[392501189,1761574242790,-500.0,0.00030137,2]
[392501190,1761574242802,-500.0,0.00030137,2]
[392501191,1761574242811,-500.0,0.00030137,2]
[392501192,1761574242821,-500.0,0.00030137,2]
[392501193,1761574242830,-500.0,0.00030137,2]
[392501194,1761574242839,-390.75479265,0.00030137,2]
[392501195,1761574242848,-500.0,0.00030137,2]
[392501196,1761574242857,-500.0,0.00030137,2]
[392501197,1761574242867,-500.0,0.00030137,2]
[392501198,1761574242876,-232460.6382689,0.00030141,2]
[392501199,1761574242886,-153.522291,0.00030141,31]
[392501200,1761574242896,-151.0,0.00030141,31]
[392501201,1761574242906,-151.0,0.00030141,31]
[392501202,1761574242916,-151.0,0.00030141,31]
[392501203,1761574242925,-151.0,0.00030141,31]
[392501204,1761574242935,-151.0,0.00030141,31]
[392501205,1761574242944,-151.0,0.00030141,31]
[392501206,1761574242954,-151.0,0.00030141,31]
[392501207,1761574243049,-196.405209,0.00030141,31]
[392501208,1761574243059,-151.0,0.00030141,31]
[392501209,1761574243068,-151.0,0.00030141,31]
[392501210,1761574243077,-151.0,0.00030141,31]
[392501211,1761574243086,-151.0,0.00030141,31]
[392501212,1761574243095,-151.0,0.00030141,31]
[392501213,1761574243105,-152.903019,0.00030141,31]
[392501214,1761574243114,-156.685551,0.00030141,31]
[392501215,1761574243123,-151.0,0.00030141,31]
[392501216,1761574243133,-151.0,0.00030141,31]
[392501217,1761574243143,-151.0,0.00030141,31]
[392501218,1761574243152,-151.0,0.00030141,31]
[392501219,1761574243162,-151.0,0.00030141,31]
[392501220,1761574243171,-154.563442,0.00030141,31]
[392501221,1761574243182,-154.563442,0.00030141,31]
[392501222,1761574243191,-154.563442,0.00030141,31]
[392501223,1761574243201,-152.70597,0.00030141,31]
[392501224,1761574243209,-154.563442,0.00030141,31]
[392501225,1761574243219,-151.0,0.00030141,31]
[392501226,1761574243234,-151.0,0.00030141,31]
[392501227,1761574243244,-151.0,0.00030141,31]
[392501228,1761574243254,-151.0,0.00030141,31]
[392501229,1761574243263,-151.0,0.00030141,31]
[392501230,1761574243273,-151.0,0.00030141,31]
[392501231,1761574243283,-154.708707,0.00030141,31]
[392501232,1761574243292,-151.0,0.00030141,31]
[392501233,1761574243303,-151.0,0.00030141,31]
[392501234,1761574243312,-151.0,0.00030141,31]
[392501235,1761574243322,-152.272296,0.00030141,31]
[392501236,1761574243331,-151.0,0.00030141,31]
[392501237,1761574243340,-151.0,0.00030141,31]
[392501238,1761574243350,-154.890421,0.00030141,31]
[392501239,1761574243359,-151.0,0.00030141,31]
[392501240,1761574243368,-151.0,0.00030141,31]
[392501241,1761574243376,-151.0,0.00030141,31]
[392501242,1761574243387,-151.0,0.00030141,31]
[392501243,1761574243397,-151.0,0.00030141,31]
[392501244,1761574243408,-151.0,0.00030141,31]
[392501245,1761574243418,-151.0,0.00030141,31]
[392501246,1761574243427,-151.0,0.00030141,31]
[392501247,1761574243437,-151.0,0.00030141,31]
[392501248,1761574243446,-151.0,0.00030141,31]
[392501249,1761574243455,-151.0,0.00030141,31]
[392501250,1761574243464,-216.627959,0.00030141,31]
[392501251,1761574243474,-151.0,0.00030141,31]
[392501252,1761574243484,-151.0,0.00030141,15]
[392501253,1761574243493,-151.0,0.00030141,15]
[392501254,1761574243503,-300.753425,0.00030141,31]
[392501255,1761574243512,-157.590019,0.00030141,31]
[392501256,1761574243521,-151.0,0.00030141,31]
[392501257,1761574243531,-151.0,0.00030141,31]
[392501258,1761574243540,-151.0,0.00030141,31]
[392501259,1761574243551,-151.0,0.00030141,31]
[392501260,1761574243560,-151.0,0.00030141,31]
[392501261,1761574243570,-158.120648,0.00030141,31]
[392501262,1761574243579,-158.120648,0.00030141,31]
[392501263,1761574243588,-158.120648,0.00030141,31]
[392501264,1761574243597,-158.120648,0.00030141,31]
[392501265,1761574243607,-153.759784,0.00030141,31]
[392501266,1761574243616,-157.524906,0.00030141,31]
[392501267,1761574243625,-151.0,0.00030141,31]
[392501268,1761574243634,-151.0,0.00030141,31]
[392501269,1761574243644,-151.0,0.00030141,31]
[392501270,1761574243653,-151.0,0.00030141,31]
[392501271,1761574243662,-151.0,0.00030141,31]
[392501272,1761574243671,-151.0,0.00030141,31]
[392501273,1761574243682,-151.0,0.00030141,31]
[392501274,1761574243691,-151.0,0.00030141,31]
[392501275,1761574243700,-151.0,0.00030141,31]
[392501276,1761574243709,-156.107889,0.00030141,31]
[392501277,1761574243718,-151.0,0.00030141,31]
[392501278,1761574243728,-151.0,0.00030141,31]
[392501279,1761574243737,-151.0,0.00030141,31]
[392501280,1761574243747,-151.0,0.00030141,31]
[392501281,1761574243756,-151.0,0.00030141,31]
[392501282,1761574243765,-157.344206,0.00030141,31]
[392501283,1761574243774,-151.0,0.00030141,31]
[392501284,1761574243783,-159.30185,0.00030141,31]
[392501285,1761574243792,-151.0,0.00030141,31]
[392501286,1761574243803,-151.0,0.00030141,14]
[392501287,1761574243812,-194.627042,0.00030141,31]
[392501288,1761574243821,-194.627042,0.00030141,31]
[392501289,1761574243830,-194.627042,0.00030141,31]
[392501290,1761574243841,-194.627042,0.00030141,31]
[392501291,1761574243850,-151.0,0.00030141,31]
[392501292,1761574243859,-153.450256,0.00030141,31]
[392501293,1761574243868,-151.0,0.00030141,31]
[392501294,1761574243878,-151.0,0.00030141,31]
[392501295,1761574243888,-151.0,0.00030141,31]
[392501296,1761574243898,-151.0,0.00030141,31]
[392501297,1761574243907,-151.0,0.00030141,31]
[392501298,1761574243917,-151.0,0.00030141,31]
[392501299,1761574243926,-151.0,0.00030141,31]
[392501300,1761574243936,-151.0,0.00030141,31]
[392501301,1761574243946,-151.0,0.00030141,31]
[392501302,1761574243956,-151.0,0.00030141,31]
[392501303,1761574243966,-152.309215,0.00030141,31]
[392501304,1761574243976,-153.879395,0.00030141,31]
[392501305,1761574243985,-151.0,0.00030141,31]
[392501306,1761574243995,-151.0,0.00030141,31]
[392501307,1761574244005,-154.199313,0.00030141,31]
[392501308,1761574244014,-193.328323,0.00030141,31]
[392501309,1761574244023,-153.85031,0.00030141,31]
[392501310,1761574244033,-151.0,0.00030141,31]
[392501311,1761574244045,-193.328323,0.00030141,31]
[392501312,1761574244054,-193.328323,0.00030141,31]
[392501313,1761574244064,-193.328323,0.00030141,31]
[392501314,1761574244074,-151.0,0.00030141,31]
[392501315,1761574244086,-155.78637,0.00030141,31]
[392501316,1761574244095,-151.0,0.00030141,31]
[392501317,1761574244104,-151.0,0.00030141,31]
[392501318,1761574244113,-151.0,0.00030141,31]
[392501319,1761574244122,-151.0,0.00030141,31]
[392501320,1761574244132,-151.0,0.00030141,31]
[392501321,1761574244141,-151.0,0.00030141,31]
[392501322,1761574244151,-713.97283296,0.00030168,2]
[392501323,1761574244160,-496.69,0.000302,30]
[392501324,1761574244170,-2481.59747418,0.00030217,3]
[392501325,1761574244179,-231.03620547,0.00030272,2]
[392501326,1761574244188,-2481.59747418,0.00030274,3]
[392501327,1761574244273,-300.0,0.00030283,2]
[392501328,1761574244284,-16995.3295203,0.00030284,2]
[392501329,1761574244295,-250.0,0.00030421,5]
[392501330,1761574244304,-1000.0,0.00030421,5]
[392501331,1761574244316,-1000.0,0.00030421,5]
[392501332,1761574244325,-520.256,0.00030449,26]
[392501333,1761574244335,-621.78829552,0.00030454,2]
[392501334,1761574244344,-258.25963816,0.00030521,5]
[392501335,1761574244354,-250.0,0.00030521,5]
[392501336,1761574244363,-400.0,0.00030558,5]
[392501337,1761574244372,-740.38982778,0.00030716,2]
[392501338,1761574244382,-2481.59747418,0.0003079,3]
[392501339,1761574244392,-883.68712834,0.0003084,2]
[392501340,1761574244402,-164.11,0.00030901,2]
[392501341,1761574244412,-7444.79242254,0.0003094,3]
[392501342,1761574244423,-74737.96907791,0.0003095,2]
[392501343,1761574244432,-350.0,0.00030968,5]
[392501344,1761574244441,-1500.0,0.00030968,5]
[392501345,1761574244452,-1500.0,0.00030968,5]
[392501346,1761574244462,-476.74869043,0.00031,7]
[392501347,1761574244472,-350.0,0.00031068,5]
[392501348,1761574244481,-600.0,0.00031242,5]
[392501349,1761574244491,-767.7842514,0.00031264,2]
[392501350,1761574244501,-842.5798185,0.00031456,2]
[392501351,1761574244511,-3792.1705976,0.00031489,2]
[392501352,1761574244520,-496.69,0.000315,30]
[392501353,1761574244530,-150.0,0.00031507,120]
[392501354,1761574244539,-450.0,0.00031516,5]
[392501355,1761574244549,-2000.0,0.00031516,5]
[392501356,1761574244559,-2000.0,0.00031516,5]
[392501357,1761574244568,-13535.0,0.000316,2]
[392501358,1761574244578,-206.95849332,0.00031614,120]
[392501359,1761574244588,-376.28033291,0.00031616,5]
[392501360,1761574244597,-796.19226871,0.00031812,2]
[392501361,1761574244607,-883.68712832,0.00031873,2]
[392501362,1761574244617,-161.5729315,0.000319,2]
[392501363,1761574244628,-165.98,0.00031914,2]
[392501364,1761574244637,-800.0,0.00031927,5]
[392501365,1761574244647,-174.0340419,0.00032,120]
[392501366,1761574244657,-163.0,0.00032,30]
[392501367,1761574244666,-523.22919796,0.00032,50]
[392501368,1761574244676,-5819.51948,0.00032,2]
[392501369,1761574244686,-476.74869043,0.00032006,2]
[392501370,1761574244696,-550.0,0.00032064,5]
[392501371,1761574244705,-1994.52284179,0.00032064,5]
[392501372,1761574244715,-2500.0,0.00032064,5]
[392501373,1761574244724,-587.0,0.00032141,2]
[392501374,1761574244733,-1200.0,0.000322,2]
[392501375,1761574244743,-164.11,0.00032213,2]
[392501376,1761574244752,-5515.0,0.000323,3]
[392501377,1761574244761,-188.0049698,0.00032332,2]
[392501378,1761574244771,-825.65138265,0.0003236,2]
[392501379,1761574244780,-181.32,0.00032375,2]
[392501380,1761574244790,-2351.0,0.00032423,3]
[392501381,1761574244800,-224.0,0.00032538,120]
[392501382,1761574244809,-224.0,0.00032548,120]
[392501383,1761574244829,-224.0,0.00032558,120]
[392501384,1761574244845,-1600.0,0.00032578,120]
[392501385,1761574244865,-422.8084541,0.00032612,5]
[392501386,1761574244884,-3000.0,0.00032612,5]
[392501387,1761574244900,-413.27365705,0.00032612,5]
[392501388,1761574244918,-1000.0,0.00032645,2]
[392501389,1761574244936,-496.69,0.000327,30]
[392501390,1761574244955,-151.0,0.00032766,14]
[392501391,1761574244975,-151.0,0.00032769,31]
[392501392,1761574244991,-154.457548,0.00032769,31]
[392501393,1761574245012,-151.0,0.00032769,31]
[392501394,1761574245029,-155.951981,0.00032769,31]
[392501395,1761574245042,-151.0,0.00032769,31]